fUST/lending_fUST_20240928
["ID","MTS","AMOUNT","RATE_DAILY","PERIOD"]
[339337795,1727454639735,-502.25439013,0.00014563,2]
[339337796,1727454639744,-331.280823,0.00014744,2]
[339337797,1727454639754,-540.48163121,0.00014775,2]
[339337798,1727454639763,-500.0,0.00014775,2]
[339337799,1727454639773,-500.7346796,0.0001484,2]
[339337800,1727454639783,-1897.49886702,0.00015,7]
[339337801,1727454639792,-178.135917,0.00015068,2]
[339337802,1727454639801,-786.59536117,0.000151,2]
[339337803,1727454639811,-193.14018432,0.000151,2]
[339337804,1727454639820,-1298.42804154,0.000151,2]
[339337805,1727454639829,-298.464893,0.00015101,2]
[339337806,1727454639838,-298.464893,0.00015105,2]
[339337807,1727454639847,-298.464893,0.00015109,2]
[339337808,1727454639856,-298.464893,0.00015113,2]
[339337809,1727454639866,-298.464893,0.00015117,2]
[339337810,1727454639876,-298.464893,0.00015121,2]
[339337811,1727454639885,-298.464893,0.00015125,2]
[339337812,1727454639894,-298.464893,0.00015129,2]
[339337813,1727454639907,-298.464893,0.00015133,2]
[339337814,1727454639917,-298.464893,0.00015137,2]
[339337815,1727454639927,-298.464893,0.00015141,2]
[339337816,1727454639936,-298.464893,0.00015145,2]
[339337817,1727454639946,-298.464893,0.00015149,2]
[339337818,1727454639956,-298.464893,0.00015153,2]
[339337819,1727454639965,-298.464893,0.00015157,2]
[339337820,1727454639975,-298.464893,0.00015161,2]
[339337821,1727454639984,-298.464893,0.00015165,2]
[339337822,1727454639994,-298.464893,0.00015169,2]
[339337823,1727454640003,-298.464893,0.00015172,2]
[339337824,1727454640012,-298.464893,0.00015176,2]
[339337825,1727454640024,-331.280823,0.00015429,2]
[339337826,1727454640034,-420.0,0.0001546,2]
[339337827,1727454640044,-178.135917,0.00015509,2]
[339337828,1727454640054,-420.0,0.00015525,2]
[339337831,1727454640064,-501.16071739,0.000157,2]
[339337832,1727454640074,-529.81710539,0.0001589,2]
[339337833,1727454640083,-157.91095603,0.000159,2]
[339337835,1727454640094,-157.91095603,0.000159,2]
[339337837,1727454640104,-500.0,0.0001595,2]
[339337838,1727454640113,-178.135917,0.0001595,2]
[339337839,1727454640123,-500.0,0.00015979,2]
[339337840,1727454640132,-417.26035283,0.00015979,2]
[339337841,1727454640141,-437.16644597,0.00015979,2]
[339337842,1727454640151,-500.0,0.00015979,2]
[339337843,1727454640161,-500.0,0.00015979,2]
[339337844,1727454640170,-631.92608303,0.00015979,2]
[339337847,1727454640179,-22594.0003787,0.0001598,2]
[339337849,1727454640190,-8957.21401213,0.0001598,2]
[339337850,1727454640201,-1793.58375219,0.00015981,2]
[339337851,1727454640211,-3000.0,0.00016,2]
[339337852,1727454640220,-3000.0,0.0001601,2]
[339337853,1727454640230,-3000.0,0.0001602,2]
[339337854,1727454640240,-5996.987353,0.0001603,2]
[339337855,1727454640250,-178.135917,0.00016391,2]
[339337856,1727454640259,-199.999999,0.00016438,2]
[339337857,1727454640270,-500.0,0.00016498,2]
[339337858,1727454640279,-529.81710535,0.00016756,2]
[339337859,1727454640288,-178.135917,0.00016832,2]
[339337860,1727454640298,-587.0,0.00016935,2]
[339337861,1727454640307,-184.0,0.0001704,2]
[339337862,1727454640317,-587.0,0.00017077,2]
[339337863,1727454640327,-22594.0003787,0.00017356,2]
[339337864,1727454640337,-8957.21401213,0.00017356,2]
[339337866,1727454640346,-184.0,0.0001756,2]
[339337868,1727454640356,-529.81710535,0.00017621,2]
[339337870,1727454640365,-900.0,0.00017876,2]
[339337871,1727454640375,-2113.28282238,0.00017926,2]
[339337872,1727454640384,-9690.7051886,0.00017987,2]
[339337873,1727454640394,-184.0,0.0001808,2]
[339337874,1727454640403,-153.0,0.00018273,2]
[339337875,1727454640413,-153.0,0.00018273,2]
[339337876,1727454640423,-347.7565949,0.00018273,2]
[339337877,1727454640433,-5347.14727463,0.00018447,2]
[339337878,1727454640443,-529.81710535,0.00018487,2]
[339337880,1727454640452,-823.0,0.00018552,2]
[339337881,1727454640462,-184.0,0.000186,2]
[339337883,1727454640472,-823.0,0.00018785,2]
[339337884,1727454640481,-396.654382,0.00018904,2]
[339337885,1727454640491,-900.0,0.00018972,2]
[339337886,1727454640501,-12754.29781027,0.0001898,3]
[339337887,1727454640515,-40653.29236524,0.0001898,3]
[339337888,1727454640531,-12308.73940983,0.0001898,3]
[339337889,1727454640563,-24659.67192946,0.0001898,3]
[339337890,1727454640572,-35828.8560485,0.0001898,3]
[339337891,1727454640581,-14595.84510731,0.0001899,3]
[339337914,1727454643927,-208.19606795,0.0001899,3]
[339337999,1727454653223,-500.0,0.00014113,2]
[339338000,1727454653249,-500.0,0.00014113,2]
[339338001,1727454653275,-500.0,0.00014113,2]
[339338002,1727454653302,-500.0,0.00014113,2]
[339338003,1727454653328,-500.0,0.00014113,2]
[339338004,1727454653355,-500.0,0.00014113,2]
[339338005,1727454653381,-500.0,0.00014113,2]
[339338006,1727454653408,-565.72184282,0.00014113,2]
[339338007,1727454653434,-500.0,0.00014113,2]
[339338008,1727454653458,-500.0,0.00014113,2]
[339338009,1727454653484,-500.0,0.00014113,2]
[339338010,1727454653510,-500.0,0.00014113,2]
[339338011,1727454653536,-500.0,0.00014113,2]
[339338012,1727454653561,-434.27815718,0.00014113,2]
[339338014,1727454660817,300.0,0.00014112,2]
[339338016,1727454723002,300.0,0.00014112,2]
[339338026,1727454982091,1782.51500024,0.00014,2]
[339338095,1727455831707,-160.4532894,0.00015053,2]
[339338098,1727455831721,-237.6602574,0.00015112,2]
[339338100,1727455831735,-250.0,0.00015135,2]
[339338102,1727455831747,-250.0,0.00015176,2]
[339338104,1727455831757,-250.0,0.00015218,2]
[339338106,1727455831767,-250.0,0.00015259,2]
[339338108,1727455831779,-250.0,0.00015301,2]
[339338110,1727455831791,-250.0,0.00015342,2]
[339338112,1727455831804,-250.0,0.00015384,2]
[339338115,1727455831817,-250.0,0.00015425,2]
[339338117,1727455831829,-250.0,0.00015467,2]
[339338119,1727455831840,-250.0,0.00015508,2]
[339338120,1727455831853,-250.0,0.0001555,2]
[339338122,1727455831865,-250.0,0.00015591,2]
[339338124,1727455831876,-250.0,0.00015633,2]
[339338126,1727455831889,-250.0,0.00015674,2]
[339338128,1727455831902,-250.0,0.00015716,2]
[339338131,1727455831915,-250.0,0.00015757,2]
[339338133,1727455831927,-250.0,0.00015799,2]
[339338135,1727455831937,-250.0,0.0001584,2]
[339338137,1727455831950,-200.46597566,0.000159,2]
[339338140,1727455831962,-150.0,0.00016,2]
[339338142,1727455831974,-300.0,0.00016069,2]
[339338144,1727455831985,-500.0,0.0001607,2]
[339338146,1727455831998,-500.0,0.0001607,2]
[339338148,1727455832009,-500.0,0.0001607,2]
[339338151,1727455832019,-395.97421478,0.0001607,2]
[339338153,1727455832030,-500.0,0.0001607,2]
[339338155,1727455832042,-242.63773873,0.0001607,2]
[339338287,1727455837860,-250.0,0.00015882,2]
[339338289,1727455837870,-250.0,0.00015923,2]
[339338291,1727455837880,-257.36226127,0.0001607,2]
[339338293,1727455837889,-500.0,0.0001607,2]
[339338295,1727455837899,-500.0,0.0001607,2]
[339338297,1727455837908,-242.63773873,0.0001607,2]
[339338299,1727455837920,-257.36226127,0.0001607,2]
[339338301,1727455837930,-500.0,0.0001607,2]
[339338303,1727455837940,-500.0,0.0001607,2]
[339338304,1727455837949,-500.0,0.0001607,2]
[339338306,1727455837958,-500.0,0.0001607,2]
[339338308,1727455837968,-500.0,0.0001607,2]
[339338309,1727455837977,-500.0,0.0001607,2]
[339338310,1727455837986,-500.0,0.0001607,2]
[339338311,1727455837995,-500.0,0.0001607,2]
[339338312,1727455838005,-465.72184282,0.0001607,2]
[339338313,1727455838014,-500.0,0.0001607,2]
[339338314,1727455838024,-4537.55872529,0.00016071,2]
[339338354,1727455839772,-20362.44127471,0.00016071,2]
[339338356,1727455839782,-273.5180689,0.00016238,2]
[339338358,1727455839791,-420.0,0.00017568,2]
[339338360,1727455839800,-306.0,0.00018241,2]
[339338362,1727455839809,-176.60570179,0.0001878,2]
[339338364,1727455839818,-1000.0,0.0001879,2]
[339338366,1727455839827,-31033.20220413,0.000188,2]
[339338368,1727455839836,-178.7823869,0.00018822,2]
[339338370,1727455839845,-153.0,0.00018822,2]
[339338372,1727455839854,-153.0,0.00018822,2]
[339338374,1727455839864,-153.0,0.00018822,2]
[339338376,1727455839873,-153.0,0.00018822,2]
[339338378,1727455839882,-153.0,0.00018822,2]
[339338380,1727455839891,-176.60570178,0.0001884,2]
[339338382,1727455839901,-4112.01719359,0.00018856,2]
[339338384,1727455839910,-500.0,0.00018861,2]
[339338386,1727455839919,-492.34825812,0.00018861,2]
[339338388,1727455839928,-292.08224699,0.00018861,2]
[339338390,1727455839938,-306.01651218,0.00018861,2]
[339338392,1727455839947,-500.0,0.00018861,2]
[339338394,1727455839956,-11531.83280628,0.00018862,2]
[339338396,1727455839965,-411.74,0.0001887,3]
[339338398,1727455839975,-2406.6340119,0.0001887,2]
[339338400,1727455839990,-8150.05195398,0.0001887,2]
[339338403,1727455840002,-16810.8047767,0.0001887,2]
[339338987,1727455845877,-3.0,0.0001887,2]
[339345338,1727456840184,-24900.0,0.00016457,2]
[339345339,1727456840217,-159.86914643,0.000167,2]
[339345340,1727456840247,-196.6932732,0.00016879,2]
[339345341,1727456840282,-8036.63847392,0.00016879,2]
[339345342,1727456840315,-161.57506,0.00016979,2]
[339345343,1727456840350,-161.57506,0.00017031,2]
[339345344,1727456840380,-161.57506,0.00017083,2]
[339345345,1727456840409,-996.9783375,0.00017131,2]
[339345346,1727456840438,-161.57506,0.00017135,2]
[339345347,1727456840466,-161.57506,0.00017187,2]
[339345348,1727456840494,-161.57506,0.00017239,2]
[339345349,1727456840525,-161.57506,0.00017291,2]
[339345350,1727456840555,-210.3317443,0.00017313,2]
[339345351,1727456840579,-161.57506,0.00017343,2]
[339345352,1727456840610,-161.57506,0.00017395,2]
[339345353,1727456840637,-161.57506,0.00017448,2]
[339345354,1727456840667,-161.57506,0.000175,2]
[339345355,1727456840697,-161.57506,0.00017552,2]
[339345356,1727456840724,-161.57506,0.00017604,2]
[339345357,1727456840749,-161.57506,0.00017656,2]
[339345358,1727456840776,-161.57506,0.00017708,2]
[339345359,1727456840808,-157.91095603,0.00017759,2]
[339345360,1727456840835,-161.57506,0.0001776,2]
[339345361,1727456840863,-161.57506,0.00017812,2]
[339345362,1727456840888,-300.0,0.00017859,2]
[339345363,1727456840913,-300.0,0.00017859,2]
[339345364,1727456840944,-500.0,0.0001786,2]
[339345365,1727456840973,-500.0,0.0001786,2]
[339345366,1727456841001,-500.0,0.0001786,2]
[339345367,1727456841030,-500.0,0.0001786,2]
[339345368,1727456841059,-304.4140061,0.0001786,2]
[339345369,1727456841088,-500.0,0.0001786,2]
[339345370,1727456841118,-213.73153954,0.0001786,2]
[339345371,1727456841145,-500.0,0.0001786,2]
[339345372,1727456841170,-161.57506,0.00017864,2]
[339345373,1727456841194,-800.0,0.00017876,2]
[339345374,1727456841219,-500.0,0.000179,2]
[339345375,1727456841245,-254.52396851,0.000179,2]
[339345376,1727456841270,-500.0,0.000179,2]
[339345377,1727456841295,-500.0,0.000179,2]
[339345378,1727456841321,-285.18620079,0.000179,2]
[339345379,1727456841347,-500.0,0.000179,2]
[339345380,1727456841372,-325.8564437,0.00017941,2]
[339345381,1727456841397,-306.0,0.00018301,2]
[339345382,1727456841422,-306.0,0.00018301,2]
[339345383,1727456841447,-150.0,0.00018358,2]
[339345384,1727456841472,-505.80760417,0.00018448,2]
[339345385,1727456841500,-621.36034926,0.00018579,2]
[339345386,1727456841529,-6851.50760952,0.00018583,2]
[339345387,1727456841557,-500.0,0.00018681,2]
[339345388,1727456841583,-500.0,0.00018681,2]
[339345389,1727456841615,-500.0,0.00018681,2]
[339345390,1727456841855,-500.0,0.00018681,2]
[339345391,1727456841876,-266.0,0.00018681,2]
[339345392,1727456841897,-411.74,0.0001875,3]
[339345393,1727456841919,-500.0,0.00018759,2]
[339345394,1727456841940,-189.48323625,0.00018759,2]
[339345395,1727456841961,-500.0,0.00018759,2]
[339345396,1727456841982,-331.79977563,0.00018759,2]
[339345397,1727456842004,-500.0,0.00018759,2]
[339345398,1727456842028,-500.0,0.00018759,2]
[339345399,1727456842049,-325.41076937,0.00018759,2]
[339345400,1727456842069,-279.54938089,0.00018759,2]
[339345401,1727456842092,-500.0,0.00018759,2]
[339345402,1727456842113,-500.0,0.00018759,2]
[339345403,1727456842135,-500.0,0.00018759,2]
[339345404,1727456842157,-500.0,0.00018759,2]
[339345405,1727456842178,-619.09806364,0.00018759,2]
[339345406,1727456842200,-500.0,0.00018759,2]
[339345407,1727456842225,-500.0,0.00018759,2]
[339345408,1727456842247,-176.081314,0.00018759,2]
[339345409,1727456842268,-167.16540638,0.00018759,2]
[339345410,1727456842291,-500.0,0.00018759,2]
[339345411,1727456842312,-188.02190505,0.00018759,2]
[339345412,1727456842334,-500.0,0.00018759,2]
[339345413,1727456842357,-2329.05331489,0.0001876,2]
[339345414,1727456842378,-39197.82962539,0.0001876,2]
[339345464,1727457032144,-181.0,0.000168,2]
[339345465,1727457032155,-181.0,0.0001732,2]
[339345466,1727457032164,-716.026356,0.00017734,2]
[339345467,1727457032176,-500.84182278,0.000179,2]
[339345468,1727457032187,-289.14660709,0.000179,2]
[339345469,1727457032198,-716.026356,0.00018419,2]
[339345470,1727457032208,-675.04690475,0.0001866,2]
[339345471,1727457032219,-675.04690473,0.00018685,2]
[339345472,1727457032234,-675.04690473,0.0001871,2]
[339345473,1727457032246,-675.04690473,0.00018735,2]
[339345474,1727457032258,-3343.90238138,0.0001875,2]
[339345475,1727457032267,-300.0,0.00018757,2]
[339345476,1727457032277,-300.0,0.00018757,2]
[339345477,1727457032289,-256.04600068,0.00018759,2]
[339345478,1727457032299,-1552.70220993,0.00018759,2]
[339345479,1727457032311,-392.55020049,0.00018759,2]
[339345480,1727457032323,-656.24508876,0.00018759,2]
[339345481,1727457032334,-305.84891193,0.00018759,2]
[339345482,1727457032346,-2485.02806251,0.00018759,2]
[339345531,1727457038074,-181.0,0.0001785,2]
[339345533,1727457038083,-181.0,0.0001837,2]
[339345535,1727457038093,-545.68456662,0.00018758,2]
[339345537,1727457038102,-293.85265895,0.00018758,2]
[339345539,1727457038112,-187.88615049,0.00018758,2]
[339345541,1727457038122,-500.0,0.00018758,2]
[339345543,1727457038132,-500.0,0.00018758,2]
[339345545,1727457038142,-194.80332302,0.00018758,2]
[339345546,1727457038152,-500.0,0.00018758,2]
[339345548,1727457038161,-500.0,0.00018758,2]
[339345550,1727457038171,-500.0,0.00018758,2]
[339345551,1727457038181,-500.0,0.00018758,2]
[339345552,1727457038190,-500.0,0.00018758,2]
[339345553,1727457038200,-10466.73260971,0.00018759,2]
[339345554,1727457038919,-21991.78226073,0.00018759,2]
[339345555,1727457038934,-102166.55390876,0.00018759,2]
[339345556,1727457038944,-77357.51289518,0.00018759,2]
[339345557,1727457038955,-299566.888921,0.0001876,2]
[339345558,1727457038964,-107819.951977,0.0001876,2]
[339345559,1727457038979,-675.04690473,0.0001876,2]
[339345560,1727457038994,-151.0,0.0001876,2]
[339345561,1727457039005,-151.0,0.0001876,2]
[339345562,1727457039014,-151.0,0.0001876,2]
[339345563,1727457039024,-151.0,0.0001876,2]
[339345564,1727457039033,-43127.9807908,0.0001876,2]
[339345565,1727457039043,-399.018449,0.0001877,2]
[339345566,1727457039052,-399.018449,0.0001877,2]
[339345567,1727457039062,-151.0,0.0001877,2]
[339345568,1727457039071,-371.503728,0.0001877,2]
[339345569,1727457039080,-151.0,0.0001877,2]
[339345570,1727457039090,-371.503728,0.0001877,2]
[339345571,1727457039099,-151.0,0.0001877,2]
[339345572,1727457039109,-151.0,0.0001877,2]
[339345573,1727457039119,-152.187776,0.0001877,2]
[339345574,1727457039129,-151.0,0.0001877,2]
[339345575,1727457039138,-151.0,0.0001877,2]
[339345576,1727457039149,-404.801962,0.0001877,2]
[339345577,1727457039159,-404.801962,0.0001877,2]
[339345578,1727457039168,-151.0,0.0001877,2]
[339345579,1727457039178,-94829.3581418,0.0001877,2]
[339345580,1727457039189,-352.81122636,0.0001877,2]
[339345581,1727457039199,-1000.0,0.0001877,2]
[339345582,1727457039210,-150.112233,0.000188,2]
[339345583,1727457039221,-150.112233,0.000188,2]
[339345584,1727457039236,-150.112233,0.000188,2]
[339345585,1727457039245,-150.112233,0.000188,2]
[339345586,1727457039255,-150.112233,0.000188,2]
[339345587,1727457039264,-290.53358,0.000188,2]
[339345588,1727457039273,-500.0,0.000188,2]
[339345589,1727457039284,-211.85919944,0.000188,2]
[339345590,1727457039293,-150.0,0.00018811,2]
[339345591,1727457039304,-64691.9711863,0.0001885,3]
[339345592,1727457039314,-86255.9615817,0.0001885,3]
[339345593,1727457039325,-399.018449,0.0001886,2]
[339345594,1727457039334,-399.018449,0.0001886,2]
[339345595,1727457039344,-399.018449,0.0001886,2]
[339345597,1727457039353,-399.018449,0.0001886,2]
[339345598,1727457039362,-399.018449,0.0001886,2]
[339345599,1727457039372,-399.018449,0.0001886,2]
[339345600,1727457039382,-399.018449,0.0001886,2]
[339345601,1727457039393,-399.018449,0.0001886,2]
[339345602,1727457039403,-151.0,0.0001886,2]
[339345603,1727457039413,-151.0,0.0001886,2]
[339345605,1727457039422,-151.0,0.0001886,2]
[339345606,1727457039433,-151.0,0.0001886,2]
[339345607,1727457039442,-371.503728,0.0001886,2]
[339345608,1727457039451,-151.0,0.0001886,2]
[339345609,1727457039461,-371.503728,0.0001886,2]
[339345610,1727457039469,-151.0,0.0001886,2]
[339345611,1727457039481,-371.503728,0.0001886,2]
[339345614,1727457039490,-151.0,0.0001886,2]
[339345616,1727457039499,-371.503728,0.0001886,2]
[339345617,1727457039510,-371.503728,0.0001886,2]
[339345618,1727457039519,-371.503728,0.0001886,2]
[339345619,1727457039528,-371.503728,0.0001886,2]
[339345620,1727457039537,-371.503728,0.0001886,2]
[339345621,1727457039546,-2000.0,0.0001886,2]
[339345622,1727457039556,-2000.0,0.0001886,2]
[339345623,1727457039568,-2000.0,0.0001886,2]
[339345624,1727457039578,-2039.328141,0.0001886,2]
[339345625,1727457039588,-151.0,0.0001886,2]
[339345626,1727457039597,-151.0,0.0001886,2]
[339345627,1727457039607,-151.0,0.0001886,2]
[339345628,1727457039616,-151.0,0.0001886,2]
[339345629,1727457039625,-151.0,0.0001886,2]
[339345630,1727457039635,-151.0,0.0001886,2]
[339345631,1727457039644,-151.0,0.0001886,2]
[339345632,1727457039655,-151.0,0.0001886,2]
[339345633,1727457039665,-151.0,0.0001886,2]
[339345634,1727457039675,-151.0,0.0001886,2]
[339345635,1727457039684,-151.0,0.0001886,2]
[339345636,1727457039694,-151.0,0.0001886,2]
[339345637,1727457039703,-151.0,0.0001886,2]
[339345639,1727457039713,-151.0,0.0001886,2]
[339345641,1727457039724,-404.801962,0.0001886,2]
[339345642,1727457039734,-151.0,0.0001886,2]
[339345643,1727457039745,-404.801962,0.0001886,2]
[339345644,1727457039754,-151.0,0.0001886,2]
[339345645,1727457039763,-404.801962,0.0001886,2]
[339345646,1727457039772,-404.801962,0.0001886,2]
[339345647,1727457039782,-404.801962,0.0001886,2]
[339345648,1727457039791,-404.801962,0.0001886,2]
[339345649,1727457039801,-404.801962,0.0001886,2]
[339345650,1727457039811,-404.801962,0.0001886,2]
[339345651,1727457039821,-151.0,0.0001886,2]
[339345652,1727457039830,-151.0,0.0001886,2]
[339345653,1727457039839,-151.0,0.0001886,2]
[339345654,1727457039849,-151.0,0.0001886,2]
[339345655,1727457039858,-151.0,0.0001887,2]
[339345656,1727457039868,-534.031739,0.0001887,2]
[339345657,1727457039878,-534.031739,0.0001887,2]
[339345658,1727457039887,-151.0,0.0001887,2]
[339345659,1727457039897,-151.0,0.0001887,2]
[339345660,1727457039907,-151.0,0.0001887,2]
[339345661,1727457039916,-151.0,0.0001887,2]
[339345662,1727457039926,-158.616725,0.0001887,2]
[339345663,1727457039935,-158.616725,0.0001887,2]
[339345664,1727457039945,-158.616725,0.0001887,2]
[339345665,1727457039955,-158.616725,0.0001887,2]
[339345666,1727457039964,-491.473115,0.0001887,2]
[339345667,1727457039975,-491.473115,0.0001887,2]
[339345668,1727457039984,-491.473115,0.0001887,2]
[339345669,1727457039994,-491.473115,0.0001887,2]
[339345670,1727457040004,-347.447032,0.0001887,2]
[339345671,1727457040013,-347.447032,0.0001887,2]
[339345672,1727457040023,-151.0,0.0001887,2]
[339345673,1727457040032,-151.0,0.0001887,2]
[339345674,1727457040043,-316.92493701,0.0001888,2]
[339345675,1727457040053,-781.017403,0.0001888,2]
[339345676,1727457040063,-781.017403,0.0001888,2]
[339345677,1727457040072,-563.693894,0.0001888,2]
[339345678,1727457040081,-563.693894,0.0001888,2]
[339345679,1727457040090,-151.0,0.0001888,2]
[339345680,1727457040101,-366.158211,0.0001888,2]
[339345681,1727457040111,-366.158211,0.0001888,2]
[339345682,1727457040120,-151.0,0.0001888,2]
[339345683,1727457040129,-937.638017,0.0001888,2]
[339345684,1727457040139,-937.638017,0.0001888,2]
[339345685,1727457040149,-21563.9903954,0.0001888,3]
[339345686,1727457040159,-268.343585,0.0001889,2]
[339345687,1727457040168,-151.0,0.0001889,2]
[339345688,1727457040177,-268.343585,0.0001889,2]
[339345689,1727457040186,-266.665448,0.0001889,2]
[339345690,1727457040197,-187.847115,0.0001889,2]
[339345691,1727457040207,-151.0,0.0001889,2]
[339345692,1727457040217,-187.847115,0.0001889,2]
[339345693,1727457040227,-151.0,0.0001889,2]
[339345694,1727457040237,-781.017403,0.0001889,2]
[339345695,1727457040248,-155.81721,0.0001889,2]
[339345696,1727457040258,-781.017403,0.0001889,2]
[339345697,1727457040267,-563.693894,0.0001889,2]
[339345698,1727457040277,-151.0,0.0001889,2]
[339345699,1727457040287,-757.089979,0.0001889,2]
[339345700,1727457040296,-563.693894,0.0001889,2]
[339345701,1727457040306,-151.0,0.0001889,2]
[339345702,1727457040316,-757.089979,0.0001889,2]
[339345703,1727457040325,-3329.380208,0.0001889,2]
[339345704,1727457040334,-3329.380208,0.0001889,2]
[339345705,1727457040344,-151.0,0.0001889,2]
[339345706,1727457040354,-1262.342268,0.0001889,2]
[339345707,1727457040363,-1262.342268,0.0001889,2]
[339345708,1727457040372,-151.0,0.0001889,2]
[339345709,1727457040382,-151.0,0.0001889,2]
[339345710,1727457040393,-534.031739,0.0001889,2]
[339345711,1727457040403,-534.031739,0.0001889,2]
[339345712,1727457040413,-151.0,0.0001889,2]
[339345713,1727457040423,-151.0,0.0001889,2]
[339345714,1727457040434,-158.616725,0.0001889,2]
[339345715,1727457040446,-158.616725,0.0001889,2]
[339345716,1727457040456,-491.473115,0.0001889,2]
[339345717,1727457040466,-491.473115,0.0001889,2]
[339345718,1727457040571,-347.447032,0.0001889,2]
[339345719,1727457040585,-347.447032,0.0001889,2]
[339345720,1727457040596,-151.0,0.0001889,2]
[339345721,1727457040606,-150.112233,0.000189,2]
[339345722,1727457040617,-150.112233,0.000189,2]
[339345723,1727457040627,-150.112233,0.000189,2]
[339345724,1727457040638,-3848.0,0.000189,2]
[339345725,1727457040647,-3000.0,0.000189,2]
[339345726,1727457040659,-181.0,0.000189,2]
[339345727,1727457040668,-500.0,0.00018904,2]
[339345728,1727457040678,-151.0,0.00018941,2]
[339345729,1727457040687,-366.158211,0.00018941,2]
[339345730,1727457040697,-366.158211,0.00018941,2]
[339345731,1727457040707,-151.0,0.00018941,2]
[339345732,1727457040717,-937.638017,0.00018941,2]
[339345733,1727457040728,-937.638017,0.00018941,2]
[339345734,1727457040737,-6851.5076095,0.00018943,2]
[339345735,1727457040748,-268.343585,0.0001895,2]
[339345736,1727457040758,-151.0,0.0001895,2]
[339345737,1727457040767,-268.343585,0.0001895,2]
[339345738,1727457040777,-187.847115,0.0001895,2]
[339345739,1727457040786,-151.0,0.0001895,2]
[339345740,1727457040795,-187.847115,0.0001895,2]
[339345741,1727457040805,-151.0,0.0001895,2]
[339345742,1727457040815,-151.0,0.0001895,2]
[339345743,1727457040825,-757.089979,0.0001895,2]
[339345744,1727457040835,-151.0,0.0001895,2]
[339345745,1727457040845,-757.089979,0.0001895,2]
[339345746,1727457040854,-3329.380208,0.0001895,2]
[339345747,1727457040864,-3329.380208,0.0001895,2]
[339345748,1727457040873,-151.0,0.0001895,2]
[339345749,1727457040883,-1262.342268,0.0001895,2]
[339345750,1727457040893,-1262.342268,0.0001895,2]
[339345751,1727457040902,-151.0,0.0001895,2]
[339345752,1727457040911,-151.0,0.0001895,2]
[339345753,1727457040921,-151.0,0.0001895,2]
[339345754,1727457040930,-151.0,0.0001895,2]
[339345755,1727457040939,-158.616725,0.0001895,2]
[339345756,1727457040948,-158.616725,0.0001895,2]
[339345757,1727457040957,-491.473115,0.0001895,2]
[339345758,1727457040967,-491.473115,0.0001895,2]
[339345759,1727457040979,-151.0,0.0001895,2]
[339345760,1727457040989,-781.017403,0.00018959,2]
[339345761,1727457040998,-781.017403,0.00018959,2]
[339345762,1727457041007,-563.693894,0.00018959,2]
[339345763,1727457041016,-563.693894,0.00018959,2]
[339345764,1727457041026,-534.031739,0.00018959,2]
[339345765,1727457041035,-186.911765,0.00018959,2]
[339345766,1727457041045,-534.031739,0.00018959,2]
[339345767,1727457041056,-151.0,0.00018959,2]
[339345768,1727457041067,-366.158211,0.00018959,2]
[339345769,1727457041078,-366.158211,0.00018959,2]
[339345770,1727457041087,-151.0,0.00018959,2]
[339345771,1727457041096,-937.638017,0.00018959,2]
[339345772,1727457041107,-937.638017,0.00018959,2]
[339345773,1727457041117,-151.0,0.00018959,2]
[339345774,1727457041127,-158.616725,0.00018959,2]